bitfinex/quotes_ETHUSD_20240716
["timestamp","ask_amount","ask_price","bid_price","bid_amount"]
[1721140317096,3.383,3408.9,3407.4,2.264]
[1721140317403,2.93427,3408.0,3407.4,5.19873]
[1721140317893,2.9341,3408.2,3407.5,2.93468]
[1721140318097,2.93393,3408.4,3407.4,5.19873]
[1721140318098,2.93401,3408.3,3407.6,0.813341]
[1721140318391,2.93401,3408.3,3407.6,3.747911]
[1721140318691,6.31655,3408.9,3407.6,0.813341]
[1721140318986,6.31655,3408.9,3407.4,2.264]
[1721140318987,5.86852,3408.1,3407.4,5.19878]
[1721140319289,5.86852,3408.1,3407.4,2.264]
[1721140319290,2.93435,3407.9,3407.4,2.264]
[1721140319491,2.93447,3407.8,3407.4,2.264]
[1721140320189,2.93447,3407.8,3407.0,2.93513]
[1721140320190,0.586882,3407.8,3406.9,5.4468]
[1721140320390,2.9341,3408.2,3407.0,2.93513]
[1721140320391,2.9346,3407.7,3407.0,2.93513]
[1721140320559,2.93466,3407.6,3406.9,2.4468]
[1721140320891,2.93466,3407.6,3406.9,8.38197]
[1721140321115,2.9344,3407.9,3407.0,2.93513]
[1721140321293,2.93449,3407.8,3407.0,2.93513]
[1721140321496,2.93449,3407.8,3407.1,4.066716]
[1721140322164,2.93433,3408.0,3407.2,2.93495]
[1721140322472,2.93433,3408.0,3407.3,2.93482]
[1721140322669,3.0,3408.8,3407.5,2.3838]
[1721140322871,2.93385,3408.5,3407.8,2.93438]
[1721140323065,2.93385,3408.5,3407.9,0.293438]
[1721140323772,2.93385,3408.5,3407.8,2.93442]
[1721140324595,2.93367,3408.7,3407.6,2.93455]
[1721140324596,2.93393,3408.4,3407.6,2.93455]
[1721140324775,2.93393,3408.4,3407.7,2.93451]
[1721140324972,2.93393,3408.4,3407.8,2.93443]
[1721140325584,2.93393,3408.4,3407.5,5.31849]
[1721140325767,2.93393,3408.4,3407.5,5.850339]
[1721140325967,2.93436,3407.9,3407.5,2.3838]
[1721140326192,2.93459,3407.7,3407.5,2.3838]
[1721140326392,2.93423,3408.1,3407.5,2.3838]
[1721140326667,2.93428,3408.0,3407.5,2.3838]
[1721140326879,2.93405,3408.3,3407.5,2.3838]
[1721140327091,3.0,3408.8,3407.5,3.21565]
[1721140327404,2.93385,3408.5,3407.6,2.93453]
[1721140327589,2.93382,3408.6,3407.8,2.93443]
[1721140327791,2.93382,3408.6,3407.9,0.05868054]
[1721140328102,2.93331,3409.2,3407.5,3.21565]
[1721140328103,2.93343,3409.0,3408.1,2.3105]
[1721140328299,3.383,3409.4,3408.3,2.93401]
[1721140328300,2.93349,3408.9,3408.3,2.93401]
[1721140328815,2.93274,3409.8,3408.4,2.4437]
[1721140329015,1.52387826,3410.5,3408.2,0.23105]
[1721140329016,2.93307,3409.4,3409.1,2.4437]
[1721140329217,2.93247,3410.1,3409.1,2.4437]
[1721140329218,2.93298,3409.5,3409.1,2.4437]
[1721140329380,2.93287,3409.7,3409.1,2.4437]
[1721140329782,2.93305,3409.5,3409.1,2.4437]
[1721140330289,2.93287,3409.7,3409.1,2.4437]
[1721140330877,2.93289,3409.6,3409.1,2.4437]
[1721140331082,3.383,3410.0,3409.2,0.537719]
[1721140331288,2.93257,3410.0,3409.2,0.537719]
[1721140331623,2.93257,3410.0,3409.3,2.93311]
[1721140331783,2.93257,3410.0,3409.2,0.537719]
[1721140331983,2.93279,3409.8,3409.2,0.537719]
[1721140332507,2.93263,3409.9,3409.2,0.537719]
[1721140332710,2.93266,3409.9,3409.3,0.5914819]
[1721140333230,2.93218,3410.5,3409.3,0.5914819]
[1721140333429,2.93218,3410.5,3409.6,2.93288]
[1721140333788,2.93222,3410.4,3409.6,2.93288]
[1721140334094,2.93222,3410.4,3409.1,2.4437]
[1721140334095,2.9323,3410.3,3409.1,2.4437]
[1721140334311,2.9326,3410.0,3409.1,8.37696]
[1721140334542,3.383,3410.0,3409.1,5.4437]
[1721140334685,2.9329,3409.6,3409.1,2.4437]
[1721140334887,2.93275,3409.8,3409.1,2.4437]
[1721140335119,2.93268,3409.9,3409.1,2.4437]
[1721140335442,2.93272,3409.8,3409.2,0.537709]
[1721140335932,2.93272,3409.8,3409.2,3.470909]
[1721140336141,6.31516,3410.5,3409.2,3.470909]
[1721140336142,2.93257,3410.0,3409.2,3.470909]
[1721140336636,3.383,3410.5,3409.2,3.470909]
[1721140336637,2.93241,3410.2,3409.3,2.99178405]
[1721140336797,2.93212,3410.5,3409.7,2.93278]
[1721140337444,2.93212,3410.5,3409.4,2.4984]
[1721140337445,2.93212,3410.5,3409.8,0.586566]
[1721140337733,2.93234,3410.3,3409.4,2.4984]
[1721140338433,2.93269,3409.9,3409.4,2.4984]
[1721140338618,2.93241,3410.2,3409.4,2.4984]
[1721140338797,2.93232,3410.3,3409.5,2.93296]
[1721140338997,3.0,3411.3,3409.7,2.93277]
[1721140338998,2.93206,3410.6,3409.7,2.93277]
[1721140339194,2.93212,3410.5,3409.9,2.93261]
[1721140339399,2.93212,3410.5,3410.0,2.2936]
[1721140339654,2.93196,3410.7,3410.0,2.2936]
[1721140340153,2.9318,3410.9,3410.0,2.2936]
[1721140340355,2.9318,3410.9,3410.1,0.522621]
[1721140340905,2.9316,3411.1,3410.1,3.455081]
[1721140341105,3.383,3411.4,3410.2,0.0586381]
[1721140341344,2.93141,3411.4,3410.6,5.35013]
[1721140341574,6.314,3411.9,3410.6,2.4181]
[1721140341575,2.93101,3411.8,3410.6,2.4181]
[1721140341876,2.9316,3411.1,3410.6,2.4181]
[1721140342178,9.02512,3411.7,3410.1,2.808221]
[1721140342468,2.93166,3411.1,3410.1,2.2856]
[1721140342669,2.93174,3411.0,3410.2,2.93232]
[1721140342871,2.93183,3410.9,3410.3,0.521792]
[1721140343178,2.93183,3410.9,3410.1,2.2856]
[1721140343179,2.93183,3410.9,3410.2,2.93234]
[1721140343382,2.93183,3410.9,3410.2,2.9323]
[1721140343586,2.93163,3411.1,3410.3,2.93222]
[1721140343792,2.93123,3411.6,3410.3,2.93222]
[1721140343998,2.93167,3411.1,3410.3,2.93222]
[1721140344163,2.93176,3411.0,3410.4,0.815012]
[1721140344360,2.93152,3411.2,3410.5,2.4697]
[1721140344674,2.93161,3411.1,3410.5,2.4697]
[1721140344876,2.93161,3411.1,3410.5,5.40181]
[1721140345083,2.93147,3411.3,3410.5,5.40181]
[1721140345287,2.93153,3411.2,3410.6,0.9148972]
[1721140345469,2.93179,3410.9,3410.5,2.4697]
[1721140345873,6.31404,3411.8,3410.5,2.4697]
[1721140345874,2.93203,3410.6,3410.5,2.4697]
[1721140346199,2.93203,3410.6,3409.9,2.4473]
[1721140346386,2.93223,3410.4,3409.9,2.4473]
[1721140346600,5.86506,3410.1,3409.9,2.4473]
[1721140346960,2.93253,3410.1,3409.9,2.4473]
[1721140347159,2.93232,3410.3,3409.9,2.4473]
[1721140347867,2.93247,3410.1,3409.9,2.4473]
[1721140348072,2.93255,3410.0,3409.5,2.4249]
[1721140348260,2.93247,3410.1,3409.5,2.4249]
[1721140348473,2.93247,3410.1,3409.6,1.45849]
[1721140348696,2.93255,3410.0,3409.6,1.45849]
[1721140348893,2.93231,3410.3,3409.6,1.45849]
[1721140349194,2.93252,3410.1,3409.6,1.45849]
[1721140349690,3.383,3410.8,3409.5,2.4249]
[1721140349691,2.93216,3410.5,3409.5,2.4249]
[1721140349895,2.93273,3409.8,3409.2,7.3]
[1721140350110,2.93289,3409.6,3409.2,7.3]
[1721140350390,2.93289,3409.6,3409.2,9.765066]
[1721140350593,2.93273,3409.8,3409.2,9.765066]
[1721140350893,3.383,3410.3,3409.2,9.765066]
[1721140350894,2.93258,3410.0,3409.2,9.765066]
[1721140351094,2.93276,3409.8,3409.2,9.765066]
[1721140351306,2.93257,3410.0,3409.3,2.93314]
[1721140351500,2.93263,3409.9,3409.3,4.1353666]
[1721140351793,3.383,3410.8,3409.5,2.93295]
[1721140351996,3.383,3410.8,3409.7,5.37402]
[1721140351997,2.93221,3410.4,3409.7,5.37402]
[1721140352212,3.0,3411.2,3409.7,2.4413]
[1721140352373,2.93186,3410.8,3410.0,2.93253]
[1721140352560,6.31451,3411.3,3409.8,0.24413]
[1721140352561,2.9322,3410.5,3409.8,0.24413]
[1721140352899,9.31451,3411.3,3409.7,2.4413]
[1721140352900,2.93238,3410.2,3409.7,2.4413]
[1721140353059,2.93248,3410.1,3409.7,2.4413]
[1721140353460,2.93255,3410.0,3409.7,2.4413]
[1721140354085,2.93266,3409.9,3409.7,2.4413]
[1721140354361,2.93306,3409.4,3409.2,9.6877]
[1721140354679,2.93306,3409.4,3409.2,2.3877]
[1721140355191,2.93306,3409.4,3408.6,10.2337]
[1721140355192,2.93346,3409.0,3408.8,2.3877]
[1721140355788,2.93327,3409.2,3408.8,2.3877]
[1721140355987,2.93308,3409.4,3408.9,1.262142]
[1721140356172,2.93275,3409.8,3408.9,1.262142]
[1721140356390,2.93245,3410.2,3408.9,4.195612]
[1721140356391,2.93297,3409.6,3408.9,4.195612]
[1721140356588,2.93299,3409.5,3408.9,1.262142]
[1721140357317,3.383,3410.3,3408.9,1.262142]
[1721140357624,2.93298,3409.5,3409.0,0.6583402]
[1721140358020,2.93317,3409.3,3408.9,1.262142]
[1721140358319,2.93317,3409.3,3408.8,2.3877]
[1721140358719,2.93332,3409.1,3408.8,2.3877]
[1721140359235,2.93317,3409.3,3408.8,2.3877]
[1721140359394,2.93324,3409.2,3408.8,2.3877]
[1721140360020,2.93315,3409.3,3408.8,2.3877]
[1721140360225,2.93324,3409.2,3408.9,1.08248456]
[1721140360436,2.93324,3409.2,3408.8,2.3877]
[1721140361845,2.93315,3409.3,3408.8,2.3877]
[1721140361846,2.93332,3409.1,3408.8,2.3877]
[1721140363142,2.93349,3408.9,3407.9,2.93427]
[1721140363324,2.93411,3408.2,3408.0,5.3895]
[1721140363531,2.93411,3408.2,3408.0,2.3895]
[1721140364359,2.93376,3408.6,3408.0,2.3895]
[1721140364656,2.93395,3408.4,3408.0,2.3895]
[1721140364814,2.93376,3408.6,3408.1,0.23895]
[1721140365015,2.93368,3408.7,3408.1,0.23895]
[1721140365521,2.93341,3409.0,3408.2,2.93408]
[1721140365727,2.93341,3409.0,3408.1,0.23895]
[1721140365728,2.9336,3408.8,3408.1,0.23895]
[1721140365922,2.93341,3409.0,3408.2,0.556266]
[1721140366122,2.93334,3409.1,3408.4,2.93392]
[1721140367547,2.93341,3409.0,3408.2,3.490296]
[1721140367860,2.93341,3409.0,3408.3,2.934]
[1721140368034,2.9335,3408.9,3408.2,0.556266]
[1721140368228,2.9335,3408.9,3408.3,0.6118946]
[1721140368633,2.9335,3408.9,3408.1,0.23895]
[1721140368968,2.93373,3408.7,3408.1,0.23895]
[1721140369725,2.93387,3408.5,3408.0,2.3895]
[1721140369925,2.93387,3408.5,3407.7,3.0]
[1721140370131,2.93409,3408.3,3407.7,3.0]
[1721140370334,2.93411,3408.2,3407.7,0.822065]
[1721140370530,2.93411,3408.2,3407.7,3.822065]
[1721140372165,2.93387,3408.5,3407.6,2.2859]
[1721140372166,2.93442,3407.9,3407.6,2.2859]
[1721140372325,2.93444,3407.8,3407.6,2.2859]
[1721140372664,2.93444,3407.8,3407.1,2.4566]
[1721140373364,2.93444,3407.8,3407.1,5.39157]
[1721140373571,2.93444,3407.8,3407.2,3.0]
[1721140373731,2.93444,3407.8,3407.3,1.132662]
[1721140374156,2.93455,3407.7,3407.3,1.132662]
[1721140375173,2.93444,3407.8,3407.3,1.132662]
[1721140375467,2.93436,3407.9,3407.3,1.132662]
[1721140375833,2.93429,3408.0,3407.3,1.132662]
[1721140375834,2.93445,3407.8,3407.3,1.132662]
[1721140376030,2.93419,3408.1,3407.4,3.8871982]
[1721140376228,2.93416,3408.2,3407.4,3.8871982]
[1721140377174,2.93428,3408.0,3407.4,3.8871982]
[1721140377327,2.93416,3408.2,3407.2,5.9349]
[1721140377328,6.31682,3408.6,3407.2,3.0]
[1721140377549,2.93467,3407.6,3407.1,5.4566]
[1721140377830,2.93467,3407.6,3407.2,3.0]
[1721140378161,2.93467,3407.6,3407.1,2.4566]
[1721140378362,2.9347,3407.5,3406.9,3.0]
[1721140378560,2.9347,3407.5,3406.8,2.9353]
[1721140378753,2.9347,3407.5,3406.9,4.126044]
[1721140379061,2.9347,3407.5,3406.9,7.061254]
[1721140379234,2.9347,3407.5,3406.9,4.061244]
[1721140379440,2.9347,3407.5,3406.9,1.126044]
[1721140380169,2.9347,3407.5,3406.6,5.32513]
[1721140380470,2.93495,3407.3,3406.6,2.3897]
[1721140380633,2.93495,3407.3,3406.6,5.32515]
[1721140381070,2.93495,3407.3,3406.7,3.0]
[1721140381228,2.93495,3407.3,3406.8,1.132515]
[1721140381774,2.93475,3407.5,3406.8,4.067755]
[1721140382366,2.93475,3407.5,3406.9,2.9352]
[1721140382552,6.31721,3408.1,3406.9,2.9352]
[1721140382553,2.93452,3407.8,3406.9,2.9352]
[1721140382750,2.93453,3407.7,3407.0,2.93507]
[1721140382954,2.93453,3407.7,3406.8,4.067755]
[1721140382955,2.93461,3407.6,3407.1,0.7002825]
[1721140383378,2.93452,3407.8,3407.1,0.7002825]
[1721140383579,2.93452,3407.8,3407.0,2.93505]
[1721140383752,2.93452,3407.8,3406.7,3.0]
[1721140383753,2.93454,3407.7,3407.1,2.93504]
[1721140384277,6.383,3408.6,3407.5,2.93469]
[1721140384278,2.93418,3408.2,3407.5,2.93469]
[1721140384482,2.93418,3408.2,3407.2,2.408]
[1721140384483,3.383,3409.1,3407.9,2.93432]
[1721140384647,3.383,3409.1,3408.0,2.93426]
[1721140384648,2.93363,3408.8,3408.0,2.93426]
[1721140384841,2.93363,3408.8,3407.9,3.227772]
[1721140384842,2.93376,3408.6,3407.9,3.227772]
[1721140385244,2.93376,3408.6,3408.0,2.93426]
[1721140385565,4.014619,3409.1,3408.1,2.93416]
[1721140385566,2.93345,3409.0,3408.1,2.93416]
[1721140385765,2.93345,3409.0,3408.1,3.79872116]
[1721140386172,2.93345,3409.0,3408.3,2.934]
[1721140386345,2.93345,3409.0,3408.1,3.79872116]
[1721140386346,2.93345,3409.0,3408.1,3.79866116]
[1721140386548,2.93358,3408.8,3408.1,0.86456116]
[1721140386974,2.93395,3408.4,3408.0,2.425]
[1721140387286,2.93395,3408.4,3407.9,0.293432]
[1721140387287,2.93402,3408.3,3407.9,0.293432]
[1721140387589,2.93402,3408.3,3407.7,3.0]
[1721140388478,2.93416,3408.2,3407.6,3.0]
[1721140388683,2.93416,3408.2,3407.5,5.36318]
[1721140388910,2.93395,3408.4,3407.5,5.36318]
[1721140388911,2.93395,3408.4,3407.6,3.0]
[1721140389190,2.93345,3409.0,3408.1,2.93418]
[1721140389353,3.0,3409.5,3408.0,2.93425]
[1721140389354,2.93356,3408.9,3408.2,3.520923]
[1721140389550,5.86714,3408.9,3408.2,3.520923]
[1721140390382,2.93356,3408.9,3408.2,3.520923]
[1721140390901,2.93356,3408.9,3408.0,2.93425]
[1721140391187,2.93373,3408.7,3408.0,2.93425]
[1721140391392,2.93399,3408.4,3407.7,2.93451]
[1721140391557,2.9339,3408.5,3407.7,2.93445]
[1721140391755,2.93382,3408.6,3407.7,2.93445]
[1721140391756,2.93393,3408.4,3407.7,2.93445]
[1721140391959,2.93382,3408.6,3407.8,2.93444]
[1721140392176,2.93389,3408.5,3407.8,2.93444]
[1721140392460,2.93376,3408.6,3407.8,2.93444]
[1721140393187,2.93376,3408.6,3407.7,1.129767]
[1721140393188,2.93393,3408.4,3407.7,4.064287]
[1721140393486,2.93393,3408.4,3407.8,1.2427447]
[1721140393858,2.93393,3408.4,3407.6,5.93459]
[1721140394057,2.93393,3408.4,3407.8,2.93444]
[1721140394262,2.93393,3408.4,3407.7,2.93448]
[1721140394967,5.46776,3408.6,3407.8,2.93443]
[1721140395172,2.93376,3408.6,3407.8,2.93443]
[1721140395686,2.93362,3408.8,3408.0,2.93426]
[1721140395889,2.93361,3408.8,3408.1,2.93413]
[1721140396289,5.46748,3409.0,3408.2,2.99275779]
[1721140396506,2.9332,3409.3,3408.6,2.93374]
[1721140396811,5.4671,3409.4,3408.3,2.4174]
[1721140396812,2.93325,3409.2,3408.3,2.4174]
[1721140397021,2.93344,3409.0,3408.3,5.35135]
[1721140397787,2.93344,3409.0,3408.4,2.93392]
[1721140399515,3.7569145,3409.4,3408.3,2.4174]
[1721140399516,2.93351,3408.9,3408.3,2.4174]
[1721140399717,0.293351,3408.9,3407.9,2.93432]
[1721140399917,2.93397,3408.4,3407.7,5.26476]
[1721140400144,2.93402,3408.3,3407.7,2.3303]
[1721140400295,2.93414,3408.2,3407.7,2.3303]
[1721140400500,2.93421,3408.1,3407.4,2.93474]
[1721140400700,2.93421,3408.1,3407.3,2.3303]
[1721140400902,2.93446,3407.8,3407.3,2.3303]
[1721140401219,2.827421,3408.1,3406.8,5.37156]
[1721140401220,5.761611,3408.1,3406.8,5.37156]
[1721140401432,2.93476,3407.5,3406.8,5.37156]
[1721140402798,2.93476,3407.5,3405.8,3.094]
[1721140402799,2.93509,3407.1,3406.4,2.4876]
[1721140403004,5.46929,3406.9,3406.1,2.9359]
[1721140403310,5.46929,3406.9,3406.0,2.4876]
[1721140403311,2.93531,3406.8,3406.0,2.4876]
[1721140403508,2.534,3406.9,3406.1,2.93583]
[1721140403712,2.93513,3407.0,3406.2,0.835944]
[1721140403916,2.93513,3407.0,3406.2,3.771694]
[1721140404117,1.2229145,3407.3,3406.6,2.93545]
[1721140404317,2.93479,3407.4,3406.6,2.93545]
[1721140404561,2.93488,3407.3,3406.6,2.93545]
[1721140404708,2.93513,3407.0,3406.2,0.835944]
[1721140404909,2.93527,3406.9,3406.2,0.835944]
[1721140405348,2.93532,3406.8,3406.2,0.835944]
[1721140406417,2.93532,3406.8,3406.2,3.771754]
[1721140406824,2.93532,3406.8,3406.2,0.835944]
[1721140407090,2.93532,3406.8,3405.7,3.0]
[1721140407091,2.93572,3406.4,3405.7,3.0]
[1721140407355,2.93575,3406.3,3405.7,3.0]
[1721140407567,2.93575,3406.3,3405.6,5.93632]
[1721140407846,2.93575,3406.3,3405.7,1.112812]
[1721140408049,2.9355,3406.6,3405.7,4.049042]
[1721140408210,2.93539,3406.7,3405.9,2.93601]
[1721140408413,2.93547,3406.6,3405.9,2.93601]
[1721140408638,2.93537,3406.8,3405.9,3.9345152]
[1721140408825,2.9354,3406.7,3405.9,2.93601]
[1721140409026,2.93548,3406.6,3405.9,2.93601]
[1721140409813,2.93548,3406.6,3405.8,3.0]
[1721140410233,2.93548,3406.6,3405.4,2.2554]
[1721140410234,2.93567,3406.4,3405.5,2.93639]
[1721140410415,2.93583,3406.2,3405.4,5.19191]
[1721140411059,0.32879431,3406.2,3405.4,2.2554]
[1721140411256,2.93623,3405.8,3405.0,2.93685]
[1721140411622,2.93626,3405.7,3405.0,2.93685]
[1721140412035,3.094,3406.1,3404.6,2.93718]
[1721140412275,3.094,3406.1,3404.0,2.93764]
[1721140412276,2.93704,3404.8,3404.0,2.93766]
[1721140412750,2.93704,3404.8,3404.1,2.93762]
[1721140412952,2.93694,3404.9,3404.2,2.93753]
[1721140413154,2.93694,3404.9,3404.2,3.768085]
[1721140413362,2.93704,3404.8,3404.2,3.768095]
[1721140413554,2.93704,3404.8,3404.2,0.830555]
[1721140414965,2.93687,3405.0,3403.9,2.4304]
[1721140414966,2.93734,3404.5,3403.9,2.4304]
[1721140415122,2.93756,3404.2,3403.4,2.93816]
[1721140415923,3.381,3404.5,3403.3,5.43381]
[1721140415924,2.93772,3404.0,3403.3,2.4955]
[1721140416280,2.93772,3404.0,3402.9,2.93866]
[1721140416281,2.93798,3403.7,3402.9,2.93866]
[1721140416553,2.93763,3404.1,3403.3,2.93832]
[1721140416720,2.93773,3404.0,3403.3,2.93832]
[1721140417452,2.93773,3404.0,3402.9,2.93865]
[1721140417653,2.93781,3403.9,3403.0,2.93858]
[1721140417833,2.93781,3403.9,3403.1,2.93848]
[1721140418033,2.93781,3403.9,3403.2,2.93839]
[1721140418349,2.93781,3403.9,3403.0,0.82950805]
[1721140418350,2.93754,3404.3,3403.3,2.93831]
[1721140418530,6.094,3404.8,3403.3,2.93831]
[1721140418531,2.93765,3404.1,3403.3,2.93831]
[1721140418854,3.381,3404.6,3403.3,2.93831]
[1721140419076,3.0,3404.8,3403.0,0.82950805]
[1721140419077,2.93711,3404.8,3403.4,0.35258588]
[1721140419275,6.381,3405.2,3403.9,2.93773]
[1721140419276,2.93712,3404.7,3403.9,2.93773]
[1721140419769,3.381,3405.2,3404.0,2.93771]
[1721140419970,3.381,3405.2,3404.2,2.93748]
[1721140419971,2.93683,3405.1,3404.2,2.93748]
[1721140420180,2.93683,3405.1,3403.6,2.93804]
[1721140420181,3.381,3405.7,3404.7,2.93711]
[1721140420340,0.3381,3405.6,3404.4,2.305]
[1721140420540,3.381,3406.2,3404.6,2.93717]
[1721140420861,2.93651,3405.4,3404.6,2.93717]
[1721140421042,2.93661,3405.3,3404.6,2.93717]
[1721140421374,2.93661,3405.3,3404.4,2.305]
[1721140421375,2.93692,3405.0,3404.4,2.305]
[1721140421584,2.9367,3405.2,3404.4,2.305]
[1721140421585,2.93694,3404.9,3404.4,2.305]
[1721140421788,2.93682,3405.1,3404.4,2.305]
[1721140421991,6.475,3405.7,3404.4,2.305]
[1721140421992,2.93657,3405.4,3404.5,2.93728]
[1721140422151,2.93647,3405.5,3404.5,2.93728]
[1721140422152,2.93661,3405.3,3404.5,2.93728]
[1721140422353,2.93644,3405.5,3404.6,2.9372]
[1721140422653,2.93525,3406.9,3404.7,2.93711]
[1721140422654,2.9361,3405.9,3404.7,2.93711]
[1721140422875,3.381,3406.4,3405.2,2.9366]
[1721140423079,3.381,3406.4,3405.3,5.30519]
[1721140423080,4.012664,3406.4,3405.3,5.30519]
[1721140423382,3.381,3406.9,3405.3,5.30519]
[1721140423584,3.381,3406.9,3405.3,2.3686]
[1721140423585,2.93609,3405.9,3405.3,2.3686]
[1721140423784,2.93617,3405.8,3405.2,0.29366]
[1721140423973,2.93608,3405.9,3405.2,0.29366]
[1721140424293,2.93597,3406.1,3405.0,10.23685]
[1721140424294,2.93618,3405.8,3405.0,10.23677]
[1721140424456,2.93617,3405.8,3405.0,7.3]
[1721140424658,2.93627,3405.7,3405.0,7.3]
[1721140425052,2.93642,3405.5,3405.0,7.3]
[1721140426013,2.93627,3405.7,3405.0,7.3]
[1721140426155,3.381,3406.4,3405.1,1.023701]
[1721140426501,2.93567,3406.4,3405.7,2.496]
[1721140426886,2.4982,3407.3,3405.9,2.93599]
[1721140426887,2.9354,3406.7,3405.9,2.93599]
[1721140427396,2.93548,3406.6,3405.7,12.73224]
[1721140427570,2.93548,3406.6,3405.8,1.566864]
[1721140427774,2.9354,3406.7,3405.8,1.566864]
[1721140427775,2.9356,3406.5,3405.8,4.503014]
[1721140427970,2.93548,3406.6,3405.9,2.93602]
[1721140428305,2.93564,3406.5,3405.8,2.93615]
[1721140428798,2.93564,3406.5,3405.7,12.73223]
[1721140428799,2.93524,3406.9,3406.0,2.93598]
[1721140428970,2.93524,3406.9,3406.1,0.587197]
[1721140429172,6.31579,3407.4,3406.1,0.587197]
[1721140429173,2.9349,3407.3,3406.2,0.05871405]
[1721140429407,2.93479,3407.4,3406.3,2.9943566]
[1721140429607,6.31536,3407.9,3406.5,2.9355]
[1721140429897,2.93498,3407.2,3406.5,2.9355]
[1721140430099,2.93498,3407.2,3406.6,0.833631]
[1721140430774,2.93481,3407.4,3406.6,0.833631]
[1721140430974,2.93496,3407.2,3406.6,0.833631]
[1721140431303,2.93461,3407.6,3406.6,0.833631]
[1721140431517,2.93461,3407.6,3406.7,2.93532]
[1721140431518,2.93481,3407.4,3406.7,2.93532]
[1721140431721,2.9351,3407.1,3406.4,2.4652]
[1721140432035,2.9351,3407.1,3406.4,5.40083]
[1721140432536,2.9351,3407.1,3406.4,2.4652]
[1721140432709,0.293461,3407.5,3406.1,7.3]
[1721140432710,2.93561,3406.5,3406.1,7.3]
[1721140432887,2.93561,3406.5,3405.8,2.4361]
[1721140433823,2.93548,3406.6,3405.8,5.37225]
[1721140434224,2.93557,3406.5,3405.8,5.37225]
[1721140434521,2.93548,3406.6,3405.8,5.37225]
[1721140434721,2.93532,3406.8,3405.9,3.23034084]
[1721140434924,2.93545,3406.7,3405.9,3.23034084]
[1721140435220,2.93549,3406.6,3405.9,0.29427084]
[1721140435419,2.93553,3406.6,3405.9,0.29427084]
[1721140435896,2.93557,3406.5,3405.9,0.29427084]
[1721140436294,2.93511,3407.1,3406.0,3.4279892]
[1721140436604,2.93538,3406.8,3406.1,2.93585]
[1721140437006,5.87035,3407.0,3406.1,2.93585]
[1721140437243,2.93483,3407.4,3406.3,2.93569]
[1721140437244,2.93481,3407.4,3406.3,2.93569]
[1721140437533,3.0,3407.6,3406.5,2.93555]
[1721140437534,2.93464,3407.6,3406.5,2.93555]
[1721140437787,2.93487,3407.3,3406.6,2.4721]
[1721140437906,2.93497,3407.2,3406.6,2.4721]
[1721140438246,2.93484,3407.4,3406.6,5.40756]
[1721140439049,2.93462,3407.6,3406.7,2.93537]
[1721140439205,2.93462,3407.6,3406.6,2.53080426]
[1721140439206,2.93444,3407.8,3407.1,2.93501]
[1721140439412,6.31517,3408.2,3407.3,2.93484]
[1721140439718,3.381,3408.7,3407.4,2.4136]
[1721140440032,3.381,3408.7,3407.9,2.93435]
[1721140440033,2.93372,3408.7,3407.9,2.93435]
[1721140440325,3.381,3409.2,3407.9,2.93435]
[1721140440507,2.93381,3408.6,3407.9,2.93435]
[1721140440706,0.293381,3408.6,3407.5,2.93467]
[1721140441032,3.381,3408.7,3407.4,2.4136]
[1721140441328,2.93388,3408.5,3407.6,2.93453]
[1721140441565,2.93373,3408.7,3407.9,2.93435]
[1721140441702,2.93348,3409.0,3408.0,0.05868161]
[1721140442034,2.93348,3409.0,3407.9,2.93435]
[1721140442035,2.93348,3409.0,3408.1,2.93417]
[1721140442202,3.381,3409.2,3408.1,3.521022]
[1721140442398,2.93339,3409.1,3408.2,2.4061]
[1721140442625,2.93352,3408.9,3408.2,2.4061]
[1721140443001,2.93368,3408.7,3408.2,2.4061]
[1721140443506,2.93395,3408.4,3407.9,7.3]
[1721140443706,2.93382,3408.6,3407.9,7.3]
[1721140443906,3.381,3409.2,3407.9,7.3]
[1721140444211,2.93373,3408.7,3407.9,7.3]
[1721140444415,2.93388,3408.5,3407.9,7.3]
[1721140444800,2.93427,3408.0,3407.9,7.3]
[1721140445131,2.93427,3408.0,3407.1,10.23504]
[1721140445132,2.93435,3408.0,3407.1,10.23504]
[1721140445346,6.381,3408.7,3407.5,2.93463]
[1721140445510,2.93384,3408.5,3407.8,2.93444]
[1721140445711,3.381,3408.7,3407.8,2.93444]
[1721140445712,6.31475,3408.7,3407.8,2.93444]
[1721140446027,2.93376,3408.6,3407.8,2.93444]
[1721140446225,2.93375,3408.7,3407.9,2.4373]
[1721140446750,2.93389,3408.5,3407.9,2.4373]
[1721140446953,2.93373,3408.7,3407.9,3.267934]
[1721140447317,2.93373,3408.7,3407.9,2.4373]
[1721140448444,2.93385,3408.5,3407.9,2.4373]
[1721140449949,2.93385,3408.5,3407.7,2.93451]
[1721140450361,2.93372,3408.7,3407.8,2.9344]
[1721140450642,2.93355,3408.9,3407.5,2.93465]
[1721140450843,2.93406,3408.3,3407.6,2.93461]
[1721140451346,2.93351,3408.9,3408.1,2.93415]
[1721140452153,2.93341,3409.0,3408.3,2.4389]
[1721140452318,2.93341,3409.0,3408.4,2.93389]
[1721140453436,2.93324,3409.2,3408.4,2.93391]
[1721140453639,2.9326,3410.0,3409.1,2.93327]
[1721140453839,2.9326,3410.0,3409.2,2.2633]